bitfinex/quotes_SOLUSD_20250705
["timestamp","ask_amount","ask_price","bid_price","bid_amount"]
[1751727103154,0.03,148.06,148.02,0.06]
[1751727103351,9.49779549,148.05,148.02,0.06]
[1751727103659,5.0358437,148.04,148.02,0.06]
[1751727103869,4.46195179,148.05,148.02,0.06]
[1751727104166,5.03586819,148.04,148.03,4.46195179]
[1751727104364,0.03,148.06,148.03,4.46195179]
[1751727104365,5.03586819,148.05,148.03,4.46195179]
[1751727104755,0.03,148.06,148.03,4.46195179]
[1751727105349,0.03,148.06,148.04,6.75493109]
[1751727105860,0.03,148.06,148.05,4.46195179]
[1751727111563,0.03,148.06,148.05,11.21642662]
[1751727114769,0.03,148.06,148.05,6.75447483]
[1751727130690,0.03,148.06,148.05,11.21642662]
[1751727142482,0.03,148.06,148.05,6.75447483]
[1751727149218,5.08785938,148.06,148.05,6.75447483]
[1751727153691,5.08785938,148.06,148.05,30.00823705]
[1751727154017,0.03,148.09,148.07,0.14216157]
[1751727154203,0.03,148.09,148.08,23.11160065]
[1751727154583,0.03,148.09,148.08,23.25376222]
[1751727154790,0.03,148.09,148.08,75.08156938]
[1751727156293,0.03,148.09,148.08,81.8346758]
[1751727157802,0.03,148.09,148.08,63.98686864]
[1751727160507,0.2,148.12,148.11,26.0]
[1751727160688,0.2,148.12,148.11,64.58411336]
[1751727160890,0.2,148.12,148.11,83.23376222]
[1751727161094,0.03,148.13,148.12,18.64964886]
[1751727161306,0.03,148.13,148.12,23.11160065]
[1751727162824,0.03,148.13,148.12,30.00504496]
[1751727163003,1e-08,148.13,148.12,30.00504496]
[1751727165909,1e-08,148.13,148.12,35.54065338]
[1751727169009,1e-08,148.13,148.12,36.21578165]
[1751727179534,1e-08,148.13,148.12,36.27578165]
[1751727189143,0.2,148.17,148.14,49.25376222]
[1751727189345,0.2,148.17,148.14,83.21376222]
[1751727191236,0.2,148.17,148.14,89.96413349]
[1751727199135,0.2,148.17,148.14,106.84006166]
[1751727199341,0.2,148.17,148.15,0.14216157]
[1751727199541,0.2,148.17,148.16,59.3391089]
[1751727201858,0.2,148.17,148.16,63.80106069]
[1751727208438,0.2,148.17,148.16,59.3391089]
[1751727212540,0.2,148.17,148.16,63.94322226]
[1751727223160,0.2,148.18,148.17,0.14216157]
[1751727223472,0.2,148.18,148.17,23.25376222]
[1751727224387,0.2,148.18,148.17,56.00276674]
[1751727245484,0.2,148.21,148.17,72.87527804]
[1751727245786,0.2,148.21,148.2,23.11160065]
[1751727246084,0.2,148.21,148.2,57.05160065]
[1751727246384,0.2,148.21,148.2,63.79923897]
[1751727247668,0.2,148.21,148.2,59.33728718]
[1751727255801,0.2,148.21,148.2,63.94140054]
[1751727256695,0.2,148.21,148.2,59.47944875]
[1751727263612,0.2,148.21,148.2,40.68763832]
[1751727263782,0.2,148.21,148.18,13.64853264]
[1751727263783,9.71885338,148.21,148.18,13.64853264]
[1751727263982,4.46195179,148.19,148.18,13.64853264]
[1751727264193,9.51885338,148.19,148.18,13.64853264]
[1751727264603,5.05690159,148.19,148.18,32.2981815]
[1751727264789,0.2,148.21,148.19,18.64964886]
[1751727265099,0.2,148.21,148.19,57.03160065]
[1751727265800,0.2,148.21,148.19,52.56964886]
[1751727266103,0.2,148.21,148.19,57.03160065]
[1751727266692,0.2,148.21,148.2,25.53944875]
[1751727266897,0.2,148.21,148.2,30.00140054]
[1751727289016,0.2,148.21,148.2,25.53944875]
[1751727289219,0.2,148.21,148.2,30.00140054]
[1751727293230,0.2,148.21,148.2,25.39728718]
[1751727293720,0.2,148.21,148.2,30.00140054]
[1751727312734,1e-08,148.21,148.2,30.00140054]
[1751727323859,1e-08,148.24,148.23,26.0]
[1751727324161,5.05847103,148.24,148.23,83.17376222]
[1751727325466,5.05847103,148.24,148.23,89.9200349]
[1751727327057,1e-08,148.24,148.23,89.9200349]
[1751727332665,1e-08,148.24,148.23,85.45808311]
[1751727332867,1e-08,148.24,148.23,89.9200349]
[1751727345857,1e-08,148.24,148.23,85.45808311]
[1751727346075,1e-08,148.24,148.23,89.9200349]
[1751727351558,1e-08,148.24,148.23,85.45808311]
[1751727351763,1e-08,148.24,148.23,89.9200349]
[1751727360006,1e-08,148.24,148.23,40.64627268]
[1751727360215,5.05190919,148.24,148.23,59.29592154]
[1751727360371,1e-08,148.24,148.23,63.9000349]
[1751727361277,1e-08,148.24,148.23,59.43808311]
[1751727362274,1e-08,148.24,148.23,6.74627268]
[1751727362474,5.05354451,148.24,148.23,33.92]
[1751727362692,9.5154963,148.24,148.22,6.74672783]
[1751727362990,9.51549629,148.23,148.22,40.66672783]
[1751727363397,9.51549629,148.23,148.21,6.77706835]
[1751727363699,5.0535445,148.22,148.21,59.34671721]
[1751727363881,5.0535445,148.22,148.21,59.48887878]
[1751727364087,5.0535445,148.22,148.21,63.95083057]
[1751727364383,1.54850001,148.24,148.22,18.64964886]
[1751727364586,1.54850001,148.24,148.23,40.68627268]
[1751727364783,6.60209638,148.24,148.23,40.68627268]
[1751727366283,6.6015607,148.24,148.23,40.68627268]
[1751727372190,5.0530607,148.24,148.23,40.68627268]
[1751727383105,9.51501249,148.24,148.23,33.94]
[1751727384797,9.51501249,148.24,148.22,33.92]
[1751727384997,4.4619518,148.24,148.22,33.92]
[1751727385581,1e-08,148.24,148.22,33.92]
[1751727388410,1e-08,148.24,148.23,6.74627268]
[1751727388581,5.04624695,148.24,148.23,6.74627268]
[1751727399841,5.04624695,148.24,148.22,40.66653222]
[1751727400016,5.04624694,148.23,148.22,40.66653222]
[1751727404824,5.04624694,148.23,148.22,89.77813287]
[1751727405626,1e-08,148.24,148.22,89.77813287]
[1751727405822,1e-08,148.24,148.23,4.46195179]
[1751727406020,5.05750864,148.24,148.23,23.11160065]
[1751727407426,5.05750864,148.24,148.23,29.85787333]
[1751727407723,1e-08,148.24,148.23,30.0000349]
[1751727410837,1e-08,148.27,148.26,30.60411336]
[1751727411005,1e-08,148.27,148.26,64.52411336]
[1751727411006,5.05408909,148.27,148.26,64.52411336]
[1751727411206,1e-08,148.27,148.26,64.52411336]
[1751727411941,1e-08,148.27,148.26,71.26902095]
[1751727420627,1e-08,148.27,148.26,89.77650824]
[1751727422234,1e-08,148.27,148.26,66.66490759]
[1751727427320,1e-08,148.27,148.26,32.74490759]
[1751727427522,1e-08,148.27,148.26,66.66490759]
[1751727428143,1e-08,148.27,148.26,71.12685938]
[1751727428330,1e-08,148.27,148.26,40.66490759]
[1751727435624,5.04033375,148.27,148.26,40.66490759]
[1751727436029,5.04033375,148.27,148.26,33.92]
[1751727436950,9.50228554,148.27,148.26,33.92]
[1751727437149,5.04033375,148.27,148.25,40.66528874]
[1751727437452,5.04033374,148.26,148.25,40.66528874]
[1751727438650,5.04196683,148.26,148.25,40.66528874]
[1751727439454,5.04196683,148.26,148.25,40.69528874]
[1751727443545,5.04196683,148.26,148.25,33.95]
[1751727444641,5.04196683,148.26,148.25,40.69536256]
[1751727450174,5.04196683,148.26,148.25,33.95]
[1751727452769,5.04196683,148.26,148.25,40.69536256]
[1751727459680,5.04196683,148.26,148.25,45.15731435]
[1751727461893,5.10196683,148.26,148.25,45.15731435]
[1751727465100,5.10196683,148.26,148.25,40.69536256]
[1751727471505,5.10196683,148.26,148.25,6.77536256]
[1751727471725,5.10196683,148.26,148.25,40.69536256]
[1751727478099,5.10196683,148.26,148.25,45.15731435]
[1751727482121,5.10196683,148.26,148.25,40.69536256]
[1751727487740,5.10196683,148.26,148.25,45.15731435]
[1751727495445,5.10196683,148.26,148.25,40.69536256]
[1751727499949,5.10196683,148.26,148.25,6.77536256]
[1751727500130,5.10196683,148.26,148.25,40.67536256]
[1751727514660,5.10196683,148.26,148.25,63.78696321]
[1751727514867,5.10196683,148.26,148.25,63.92912478]
[1751727515370,0.06,148.26,148.25,63.92912478]
[1751727525877,1e-08,148.26,148.25,63.92912478]
[1751727542582,1e-08,148.26,148.25,59.46717299]
[1751727542911,1e-08,148.26,148.25,59.32501142]
[1751727547124,1e-08,148.26,148.25,25.42501142]
[1751727547424,1e-08,148.26,148.25,59.32501142]
[1751727549430,1e-08,148.26,148.25,63.78696321]
[1751727554842,1e-08,148.26,148.25,59.32501142]
[1751727555047,1e-08,148.26,148.25,63.78696321]
[1751727574260,1e-08,148.26,148.25,29.88696321]
[1751727574437,1e-08,148.26,148.25,63.78696321]
[1751727579876,1e-08,148.26,148.25,59.32501142]
[1751727580172,1e-08,148.26,148.25,63.78696321]
[1751727581469,5.05562103,148.26,148.25,63.78696321]
[1751727590690,5.05562103,148.26,148.25,25.42501142]
[1751727590901,5.05562103,148.26,148.25,59.32501142]
[1751727594598,9.51757282,148.26,148.25,0.03]
[1751727598698,9.51827604,148.26,148.25,0.03]
[1751727600512,5.05632425,148.26,148.25,0.03]
[1751727600701,9.51827604,148.26,148.25,0.03]
[1751727601699,11.10547604,148.26,148.25,0.03]
[1751727602101,17.42588134,148.26,148.25,0.03]
[1751727602408,24.17078893,148.26,148.25,0.03]
[1751727602787,17.85038363,148.26,148.21,0.03]
[1751727603001,4.46195179,148.22,148.21,0.03]
[1751727603217,9.51827603,148.22,148.21,0.03]
[1751727607686,11.08277603,148.22,148.21,0.03]
[1751727613505,17.82950386,148.22,148.21,0.03]
[1751727615718,11.08277603,148.22,148.21,0.03]
[1751727617623,11.05731213,148.22,148.21,0.03]
[1751727621428,6.02645179,148.22,148.21,0.03]
[1751727621612,11.05638469,148.22,148.21,0.03]
[1751727622821,5.0299329,148.22,148.21,0.03]
[1751727623019,4.46195179,148.23,148.21,0.03]
[1751727623521,9.49188469,148.23,148.21,0.03]
[1751727623734,4.46195179,148.23,148.21,0.03]
[1751727624325,9.49188469,148.23,148.21,0.03]
[1751727624630,4.46195179,148.23,148.21,0.03]
[1751727625029,9.49188469,148.23,148.21,0.03]
[1751727625211,4.46195179,148.23,148.21,0.03]
[1751727625508,9.49188469,148.23,148.21,0.03]
[1751727625815,4.46195179,148.23,148.21,0.03]
[1751727626015,9.49188469,148.23,148.21,0.03]
[1751727626228,4.46195179,148.23,148.21,0.03]
[1751727626413,9.49188469,148.23,148.21,0.03]
[1751727626615,4.46195179,148.23,148.21,0.03]
[1751727626817,4.46195179,148.22,148.21,0.03]
[1751727627433,9.49188469,148.22,148.21,0.03]
[1751727627617,4.46195179,148.22,148.21,0.03]
[1751727627933,9.49188469,148.22,148.21,0.03]
[1751727628115,4.46195179,148.22,148.21,0.03]
[1751727628308,9.49188469,148.22,148.21,0.03]
[1751727628510,4.46195179,148.22,148.21,0.03]
[1751727628712,9.49188469,148.22,148.21,0.03]
[1751727628927,16.23861252,148.22,148.21,0.03]
[1751727629127,17.85911252,148.22,148.21,0.03]
[1751727631437,24.46891252,148.22,148.21,0.03]
[1751727631622,30.75748794,148.22,148.21,0.03]
[1751727631819,12.93900832,148.22,148.21,0.03]
[1751727632129,11.11238469,148.22,148.21,0.03]
[1751727632508,9.49188469,148.22,148.21,0.03]
[1751727637317,5.0299329,148.22,148.21,0.03]
[1751727641232,9.49188469,148.22,148.21,0.03]
[1751727642920,5.0299329,148.22,148.21,0.03]
[1751727643128,9.49188469,148.22,148.21,0.03]
[1751727647371,15.78046011,148.22,148.21,0.03]
[1751727652982,9.49188469,148.22,148.19,0.03]
[1751727653165,15.81740769,148.21,148.19,0.03]
[1751727653362,5.0299329,148.2,148.19,0.03]
[1751727660922,5.0299329,148.2,148.19,0.03]
[1751727662105,5.0299329,148.2,148.19,4.49195179]
[1751727662626,5.0299329,148.2,148.19,0.03]
[1751727664128,5.0299329,148.2,148.19,4.49195179]
[1751727664528,5.0299329,148.2,148.19,0.03]
[1751727664708,5.0299329,148.2,148.19,4.49195179]
[1751727664915,5.0299329,148.2,148.19,0.03]
[1751727665217,5.05908925,148.2,148.19,6.77809366]
[1751727669040,5.05908925,148.2,148.19,11.24004545]
[1751727674616,5.05908925,148.2,148.19,30.03185588]
[1751727674815,6.38386156,148.25,148.2,0.14216157]
[1751727675019,5.05901373,148.24,148.23,4.46195179]
[1751727675236,5.05901373,148.24,148.23,23.11160065]
[1751727676717,5.05901373,148.24,148.23,29.85787333]
[1751727678726,5.11901373,148.24,148.23,29.85787333]
[1751727680053,5.11078657,148.24,148.23,29.85787333]
[1751727684727,0.06,148.24,148.23,29.85787333]
[1751727696148,0.06,148.24,148.21,6.9]
[1751727696445,9.50331921,148.23,148.21,6.9]
[1751727696640,4.46195179,148.23,148.21,6.9]
[1751727697932,4.46195179,148.22,148.21,6.9]
[1751727698132,9.50445517,148.22,148.21,6.9]
[1751727698350,9.50445517,148.22,148.19,0.03]
[1751727698653,9.50445517,148.21,148.19,0.03]
[1751727698955,4.46195179,148.21,148.19,0.03]
[1751727700650,5.04362708,148.2,148.19,0.03]
[1751727703155,9.50557887,148.2,148.19,0.03]
[1751727704247,5.04362708,148.2,148.19,0.03]
[1751727707469,9.50557887,148.2,148.19,0.03]
[1751727707647,17.87791719,148.2,148.19,0.03]
[1751727720287,5.04362708,148.2,148.19,0.03]
[1751727720771,4.46195179,148.23,148.19,4.49195179]
[1751727720772,9.49315855,148.23,148.19,4.49195179]
[1751727721193,5.03120676,148.22,148.19,4.49195179]
[1751727721788,5.03120676,148.22,148.19,6.99050684]
[1751727722874,5.03120676,148.22,148.19,13.73839418]
[1751727723067,0.06,148.21,148.19,13.73839418]
[1751727726400,0.06,148.21,148.2,6.96050684]
[1751727728162,0.06,148.21,148.2,32.35779402]
[1751727728368,0.06,148.21,148.2,32.49995559]
[1751727740375,0.06,148.21,148.2,39.41995559]
[1751727743806,0.06,148.21,148.2,36.9115316]
[1751727754981,0.06,148.24,148.21,0.14216157]
[1751727755206,0.06,148.24,148.22,33.94]
[1751727756908,0.06,148.24,148.23,11.19835553]
[1751727759398,0.06,148.24,148.23,6.74627268]
[1751727760406,5.10003839,148.24,148.23,6.74627268]
[1751727762005,5.10193335,148.24,148.23,6.74627268]
[1751727766090,5.10193335,148.24,148.23,11.19835553]
[1751727775920,5.10193335,148.24,148.23,6.74627268]
[1751727776105,11.40435003,148.24,148.21,6.74718305]
[1751727776310,5.04193335,148.23,148.21,6.74718305]
[1751727776613,5.04193335,148.23,148.2,4.45208285]
[1751727776614,5.04193335,148.22,148.2,6.7474413]
[1751727776805,5.04193335,148.21,148.2,6.7474413]
[1751727778026,5.04193335,148.21,148.19,6.77809366]
[1751727778218,5.04193335,148.2,148.19,6.77809366]
[1751727782830,5.04193335,148.2,148.19,11.23017651]
[1751727787733,5.04193335,148.2,148.19,6.77809366]
[1751727787914,5.04193335,148.2,148.19,11.23017651]
[1751727792639,5.04193335,148.2,148.19,29.87982537]
[1751727792933,6.36241668,148.24,148.19,46.75005952]
[1751727793147,5.04722846,148.23,148.2,33.92]
[1751727793439,5.04722846,148.22,148.2,33.92]
[1751727793613,5.04722846,148.21,148.2,33.92]
[1751727794240,5.04722846,148.21,148.2,52.56964886]
[1751727794443,0.06,148.24,148.21,0.14216157]
[1751727794768,0.06,148.24,148.23,11.19835553]
[1751727795059,0.06,148.24,148.23,6.74627268]
[1751727795255,0.06,148.24,148.23,11.19835553]
[1751727798045,0.06,148.24,148.23,29.84800439]
[1751727806452,5.10913395,148.24,148.23,29.84800439]
[1751727816510,5.10962818,148.24,148.23,11.19835553]
[1751727816912,0.06,148.24,148.23,11.19835553]
[1751727821110,0.06,148.24,148.23,29.84800439]
[1751727829330,0.06,148.24,148.23,29.99016596]
[1751727839006,0.06,148.25,148.24,0.14216157]
[1751727839238,0.06,148.25,148.24,38.51424442]
[1751727839452,0.06,148.25,148.24,57.16389328]
[1751727841158,0.06,148.25,148.24,63.90971087]
[1751727843638,1e-08,148.26,148.24,63.90971087]
[1751727843949,1e-08,148.26,148.25,23.24389328]
[1751727845755,1e-08,148.26,148.25,29.98925584]
[1751727846448,1e-08,148.27,148.25,29.98925584]
[1751727846639,1e-08,148.27,148.26,57.02173171]
[1751727847250,1e-08,148.27,148.26,57.69622246]
[1751727847827,1e-08,148.27,148.26,64.44113005]
[1751727851671,1e-08,148.28,148.27,18.64964886]
[1751727851969,1e-08,148.28,148.27,23.10173171]
[1751727852751,1e-08,148.28,148.27,29.84618439]
[1751727853547,1e-08,148.28,148.27,29.98834596]
[1751727853751,0.2,148.3,148.29,44.79181043]
[1751727854059,0.2,148.3,148.29,90.06389328]
[1751727854671,0.2,148.32,148.3,23.24389328]
[1751727854850,0.2,148.32,148.29,66.82]
[1751727854851,0.2,148.32,148.31,63.92652695]
[1751727860177,0.2,148.32,148.31,25.5344441]
[1751727860476,0.2,148.32,148.31,29.98652695]
[1751727860658,0.2,148.32,148.31,70.78652695]
[1751727863279,0.2,148.32,148.31,29.98652695]
[1751727863479,0.2,148.32,148.31,70.78652695]
[1751727865693,0.2,148.32,148.31,29.98652695]
[1751727865888,0.2,148.32,148.31,70.78652695]
[1751727869894,0.2,148.32,148.31,29.98652695]
[1751727870267,0.2,148.32,148.31,70.76652695]
[1751727873385,0.2,148.32,148.31,36.72436538]
[1751727873573,0.2,148.32,148.31,70.62436538]
[1751727873885,0.2,148.32,148.31,18.07471652]
[1751727874085,5.23015618,148.32,148.31,0.03]
[1751727874391,6.81325618,148.32,148.31,0.03]
[1751727874601,6.81325618,148.32,148.31,33.95]
[1751727874769,6.81325618,148.32,148.31,0.03]
[1751727875975,6.81325618,148.32,148.31,4.48208285]
[1751727878590,6.81814158,148.32,148.31,4.48208285]
[1751727878897,6.81814158,148.32,148.31,0.03]
[1751727883407,5.23504158,148.32,148.31,4.48208285]
[1751727885684,5.23504158,148.32,148.31,11.22471652]
[1751727888413,5.24515436,148.32,148.31,11.22471652]
[1751727889295,5.24515436,148.32,148.31,0.03]
[1751727904226,5.24515436,148.32,148.31,4.48208285]
[1751727904829,5.24515436,148.32,148.31,11.22471652]
[1751727921635,5.24515436,148.32,148.31,6.77263367]
[1751727923024,5.24515436,148.32,148.31,11.22471652]
[1751727931840,5.24515436,148.32,148.31,6.77263367]
[1751727946036,5.24515436,148.32,148.31,40.67263367]
[1751727946655,5.24515436,148.32,148.31,6.77263367]
[1751727946853,5.24515436,148.32,148.31,40.67263367]
[1751727947156,5.24515436,148.32,148.31,6.77263367]
[1751727947357,5.24515436,148.32,148.31,40.67263367]
[1751727949541,5.24515436,148.32,148.31,6.77263367]
[1751727949859,5.24515436,148.32,148.31,40.67263367]
[1751727953043,5.24515436,148.32,148.31,63.91652695]
[1751727954170,1e-08,148.32,148.31,107.72485835]
[1751727955160,0.2,148.33,148.32,18.79181043]
[1751727955342,0.2,148.33,148.32,41.05222468]
[1751727956263,0.2,148.36,148.32,43.30794258]
[1751727956465,0.2,148.36,148.35,23.24389328]
[1751727956648,0.2,148.36,148.35,57.14389328]
[1751727957057,0.2,148.36,148.35,63.88470891]
[1751727957247,1e-08,148.36,148.35,63.88470891]
[1751727963770,1e-08,148.36,148.35,36.72254734]
[1751727963946,1e-08,148.36,148.35,66.29262606]
[1751727964142,1e-08,148.36,148.35,70.74470891]
[1751727978356,1e-08,148.36,148.35,36.86470891]
[1751727978578,1e-08,148.36,148.35,70.74470891]
[1751727981685,1e-08,148.36,148.35,70.77470891]
[1751728000289,5.05270103,148.36,148.35,70.77470891]
[1751728015230,5.05270103,148.36,148.35,66.32262606]
[1751728015528,5.05270103,148.36,148.35,70.77470891]
[1751728018423,1e-08,148.36,148.35,70.77470891]
[1751728020133,5.05818129,148.36,148.35,70.77470891]
[1751728021707,5.05818129,148.36,148.35,32.44262606]
[1751728022110,5.05818129,148.36,148.35,6.91]
[1751728022312,5.05818129,148.36,148.35,0.03]
[1751728022313,17.38109074,148.36,148.35,0.03]
[1751728022620,17.38109074,148.36,148.31,13.65257068]
[1751728022818,4.45208285,148.33,148.31,40.79]
[1751728023022,5.05818128,148.32,148.31,47.53253846]
[1751728023223,5.05818128,148.32,148.31,13.65253846]
[1751728023425,5.05818128,148.32,148.31,47.53253846]
[1751728024722,9.51026413,148.32,148.31,40.79]
[1751728026626,9.51026413,148.32,148.31,6.91]
[1751728027234,5.05818128,148.32,148.31,13.65263367]
[1751728027826,5.05818128,148.32,148.31,6.91]
[1751728029328,1.54810001,148.36,148.32,18.64964886]
[1751728029531,5.03750487,148.35,148.34,4.45208285]
[1751728029732,5.03750487,148.35,148.34,23.10173171]
[1751728030918,1.54810001,148.36,148.34,23.10173171]
[1751728031116,1.54810001,148.36,148.35,38.35208285]
[1751728031431,1.54810001,148.36,148.35,45.09289848]
[1751728031432,6.58479936,148.36,148.35,45.09289848]
[1751728033241,6.58479936,148.36,148.35,40.64081563]
[1751728034437,5.03629935,148.36,148.35,40.64081563]
[1751728042546,5.03629935,148.36,148.31,49.76658418]
[1751728042547,9.4883822,148.36,148.31,6.91]
[1751728042847,9.48838219,148.35,148.32,33.92]
[1751728043028,5.03629934,148.34,148.32,33.92]
[1751728043223,4.45208285,148.35,148.32,33.92]
[1751728043553,5.03751136,148.34,148.32,33.92]
[1751728043850,4.45208286,148.36,148.32,33.92]
[1751728044058,5.03750962,148.35,148.33,33.92]
[1751728044350,5.03750962,148.34,148.33,33.92]
[1751728046352,5.03750962,148.34,148.32,33.92]
[1751728046556,4.45208286,148.36,148.32,33.92]
[1751728046729,9.48923874,148.35,148.32,33.92]
[1751728046930,5.03715589,148.34,148.32,33.92]
[1751728047129,4.45208285,148.35,148.32,33.92]
[1751728047358,5.03715937,148.34,148.32,33.92]
[1751728047648,4.45208285,148.35,148.32,33.92]
[1751728047862,5.03714772,148.34,148.32,33.92]
[1751728048040,4.45208285,148.35,148.32,33.92]
[1751728048242,5.03714772,148.34,148.32,33.92]
[1751728048448,4.45208285,148.35,148.32,40.66192366]
[1751728048644,5.03718738,148.34,148.32,40.66192366]
[1751728048829,4.45208285,148.35,148.32,40.66192366]
[1751728049034,5.03718912,148.34,148.32,40.66192366]
[1751728049233,4.45208285,148.35,148.32,40.66192366]
[1751728049540,5.0372804,148.34,148.32,40.66192366]
[1751728049752,4.45208285,148.35,148.32,40.66192366]
[1751728049954,5.03728213,148.34,148.32,40.66192366]
[1751728050255,4.45208285,148.35,148.32,40.66192366]
[1751728050558,5.03742879,148.34,148.32,40.66192366]
[1751728050855,4.45208285,148.35,148.32,40.66192366]
[1751728051057,5.03742705,148.34,148.32,40.66192366]
[1751728051251,4.45208285,148.35,148.32,40.66192366]
[1751728051453,5.0376306,148.34,148.32,40.66192366]
[1751728051650,4.45208286,148.36,148.32,40.66192366]
[1751728051844,5.03762711,148.35,148.32,40.66192366]
[1751728052159,5.03762711,148.34,148.32,40.66192366]
[1751728052340,4.45208286,148.36,148.32,40.66192366]
[1751728052535,5.03788695,148.35,148.32,40.66192366]
[1751728052731,5.03788695,148.34,148.32,40.66192366]
[1751728052953,4.45208286,148.36,148.32,40.66192366]
[1751728053153,5.03788695,148.35,148.32,40.66192366]
[1751728053335,4.45208286,148.36,148.32,40.66192366]
[1751728053336,5.03788695,148.34,148.32,40.66192366]
[1751728053531,4.45208286,148.36,148.32,40.66192366]
[1751728053743,5.03820997,148.35,148.32,40.66192366]
[1751728053945,5.03820997,148.34,148.32,40.66192366]
[1751728054177,4.45208286,148.36,148.32,40.66192366]
[1751728054459,5.03858392,148.35,148.32,40.66192366]
[1751728054757,5.03858566,148.34,148.32,40.66192366]
[1751728054958,4.45208286,148.36,148.32,40.66192366]
[1751728055135,5.03858392,148.35,148.32,40.66192366]
[1751728055337,5.03858392,148.34,148.32,40.66192366]
[1751728055554,4.45208286,148.36,148.32,40.66192366]
[1751728055756,5.03902623,148.35,148.32,40.66192366]
[1751728056059,5.03902623,148.34,148.32,40.66192366]
[1751728056253,4.45208286,148.36,148.32,40.66192366]
[1751728056559,5.03953499,148.35,148.32,40.66192366]
[1751728056739,5.03953499,148.34,148.32,40.66192366]
[1751728056942,4.45208286,148.36,148.32,40.66192366]
[1751728057151,5.03953499,148.35,148.32,40.66192366]
[1751728057353,5.03953499,148.34,148.32,40.66192366]
[1751728057542,4.45208286,148.36,148.32,40.66192366]
[1751728057734,5.04011864,148.35,148.32,40.66192366]
[1751728057938,5.04011864,148.34,148.32,40.66192366]
[1751728058139,4.45208286,148.36,148.32,40.66192366]
[1751728058338,5.04027496,148.35,148.32,40.66192366]
[1751728058535,5.04027496,148.34,148.32,40.66192366]
[1751728058752,5.04027496,148.33,148.32,40.66192366]
[1751728063060,5.04027496,148.33,148.32,63.90581694]
[1751728063239,1e-08,148.36,148.34,0.14216157]
[1751728063439,1e-08,148.36,148.35,57.02173171]
[1751728063640,5.04426023,148.36,148.35,57.02173171]
[1751728064234,5.04426023,148.36,148.35,63.76254734]
[1751728066258,5.04526784,148.36,148.35,63.76254734]
[1751728068067,5.04526784,148.36,148.35,40.66081563]
[1751728072286,5.04526784,148.36,148.35,45.11289848]
[1751728076091,5.04526784,148.36,148.35,40.66081563]
[1751728082078,5.04526784,148.36,148.35,45.11289848]
[1751728084985,5.04526784,148.36,148.35,40.66081563]
[1751728086783,9.49735069,148.36,148.31,6.91]
[1751728087090,4.45208285,148.34,148.32,33.92]
[1751728087293,5.04526783,148.33,148.31,40.83]
[1751728087466,5.04526783,148.32,148.31,40.83]
[1751728088190,5.04526783,148.32,148.31,47.57246918]
[1751728088895,5.04526783,148.32,148.31,70.67420089]
[1751728089068,4.45208286,148.36,148.31,70.67420089]
[1751728089390,4.45208286,148.36,148.32,4.45208285]
[1751728089391,5.04880188,148.35,148.32,4.45208285]
[1751728089588,5.04880188,148.34,148.33,33.92]
[1751728089781,5.04880188,148.34,148.32,38.37208285]
[1751728089987,5.04880188,148.33,148.32,38.37208285]
[1751728090189,5.04880188,148.33,148.32,45.11426192]
[1751728099406,5.04880188,148.33,148.32,40.66217907]
[1751728099907,5.04996886,148.33,148.32,40.66217907]
[1751728101909,5.04996886,148.33,148.32,63.90607235]
[1751728102214,1e-08,148.36,148.33,0.14216157]
[1751728102386,5.05001837,148.35,148.34,57.02173171]
[1751728103203,5.05001837,148.35,148.34,59.31091891]
[1751728103411,5.05001837,148.35,148.34,40.66127005]
[1751728103582,9.50210122,148.35,148.34,33.92]
[1751728103789,9.50210122,148.35,148.33,6.74164175]
[1751728103790,9.50210122,148.35,148.33,40.66164175]
[1751728104082,5.05001837,148.34,148.33,40.66164175]
[1751728110086,5.05001837,148.34,148.32,40.66200264]
[1751728110308,9.50210122,148.33,148.31,13.65244409]
[1751728110517,5.05001837,148.32,148.31,6.91]
[1751728110692,5.05001837,148.32,148.31,40.83]
[1751728110893,5.05001837,148.32,148.31,6.91]
[1751728111712,5.05001837,148.32,148.31,13.65263367]
[1751728127092,5.05001837,148.32,148.31,18.10471652]
[1751728127598,5.05001837,148.32,148.31,36.75436538]
[1751728128125,5.05001837,148.32,148.31,32.30228253]
[1751728128297,5.05001837,148.32,148.31,36.75436538]
[1751728128698,5.05001837,148.32,148.31,18.10471652]